Cogmind - Beta 14 @@@ ROGUE MODE // 2024.12.02 @ 21:31:03 Player: Thomas Result: Destroyed by G-34 Mercenary with Small Laser Performance ------------- Evolutions (0) 0 Regions Visited (1) 200 Robots Destroyed (14) 70 Value Destroyed (317) 317 Prototype IDs (0) 0 Alien Tech Used (0) 0 Bonus (0) 0 TOTAL SCORE: 587 Bonus ------- None Cogmind --------- Core Integrity 0/250 Matter 257/300 Energy 125/125 System Corruption 0% Temperature Cool (6) Movement Walking (120) Location -10/Materials Parts ------- > --- POWER (1) -------- Light Ion Engine > --- PROPULSION (2) --- Light Treads Aluminum Leg > --- UTILITY (2) ------ Small Storage Unit > --- WEAPON (2) ------- Light Assault Rifle > --- INVENTORY (8) ---- Ion Engine Aluminum Leg Aluminum Leg Compact Wheel Small Matter Pod (0) Tractor Beam Particle Gun Peak State ------------ > --- POWER ------------ Light Ion Engine > --- PROPULSION ------- Aluminum Leg Aluminum Leg > --- UTILITY ---------- Small Storage Unit Backup Plating I > --- WEAPON ----------- EM Pulse Gun Assault Rifle > --- INVENTORY -------- Ion Engine Light Treads Compact Wheel Small Laser [Rating: 7] Favorites ----------- Power Light Ion Engine Engine Light Ion Engine Propulsion Aluminum Leg Treads Light Treads Leg Aluminum Leg Wheel Compact Wheel Utility Small Storage Unit Storage Small Storage Unit Protection Backup Plating I Weapon Assault Rifle Energy Gun EM Pulse Gun Ballistic Gun Assault Rifle Build | -11 -10 ------- Run | Yrd Mat Slots Evolved . | . . Power . | . . Propulsion . | . . Utility . | . . Weapon . | . . Parts Attached 17 | 5 12 Power 3 | 1 2 Engine 3 | 1 2 Core . | . . Reactor . | . . Propulsion 6 | 1 5 Treads 1 | . 1 Leg 4 | . 4 Wheel 1 | 1 . Hover . | . . Flight . | . . Utility 1 | 1 . Device . | . . Storage 1 | 1 . Processor . | . . Hackware . | . . Protection . | . . Artifact . | . . Weapon 7 | 2 5 Energy Gun 4 | 1 3 Energy Cannon . | . . Ballistic Gun 3 | 1 2 Ballistic Cannon . | . . Launcher . | . . Special Weapon . | . . Impact Weapon . | . . Slashing Weapon . | . . Piercing Weapon . | . . Special Melee Weapon . | . . Unidentified Prototypes . | . . Parts Lost 7 | . 7 Power 1 | . 1 Propulsion 2 | . 2 Utility 1 | . 1 Weapon 3 | . 3 Highest Loss Streak 5 | . 5 To Critical Strikes . | . . Average Slot Usage (%) 85 | . 85 Engine 12 | . 12 Treads 1 | . 1 Leg 21 | . 21 Storage 14 | . 14 Protection 8 | . 8 Energy Gun 14 | . 14 Ballistic Gun 11 | . 11 Peak Build Rating 7 | 5 7 Average Rating 5 | 2 6 On Entrance 2 | . 5 Naked Turns . | . . Heaviest Build 15 | 12 15 Greatest Support 20 | 16 20 Greatest Overweight (x) 2 | 2 2 Average Overweight (x) . | . . Largest Inventory Capacity 8 | 8 8 Average Capacity 7 | 7 8 Most Carried 8 | 5 8 Average Carried 5 | 4 5 Final Capacity 8 | 8 8 Final Carried 7 | 5 7 Class Distribution -------------------- 100% | Mutant Dominant Class ---------------- Mutant | -10/Materials Resources | -11 -10 ----------- Run | Yrd Mat Matter Collected 461 | 161 300 Remotely . | . . Salvage Created 412 | . 412 Parts 26 | . 26 Haulers Intercepted . | . . Recyclers Shooed . | . . Parts Field Recycled . | . . Retrieved Matter . | . . Parts Self-Destructed . | . . Prevented . | . . Kills | -11 -10 ------- Run | Yrd Mat Combat Hostiles Destroyed 13 | . 13 Guns 12 | . 12 AOE 1 | . 1 Classes Destroyed 3 | . 3 Recycler 1 | . 1 Swarmer 6 | . 6 Grunt 7 | . 7 Best Kill Streak 4 | . 4 Combat Bots Only 3 | . 3 Max Kills in Single Turn 2 | . 2 Gunslinging . | . . Exploded 1 | . 1 Melee . | . . Uniques/NPCs Destroyed . | . . Combat | -11 -10 -------- Run | Yrd Mat Hostile Shots Fired 102 | . 102 Missed 21 | . 21 Damage Taken 975 | . 975 Core 253 | . 253 Absorbed by Shields . | . . Core Remaining (%) 100 | 100 . Volleys Fired 57 | . 57 Largest 2 | . 2 Hottest 105 | . 105 Shots Fired 90 | . 90 Gun 90 | . 90 Cannon . | . . Launcher . | . . Special . | . . Kinetic 46 | . 46 Thermal 29 | . 29 Explosive . | . . Electromagnetic 15 | . 15 Robot Hit Streak 8 | . 8 Robot Miss Streak 4 | . 4 Penetration Max . | . . Secondary Targets . | . . Shots Hit Robots 55 | . 55 Core Hits 22 | . 22 Critical Kills . | . . Critical Parts Destroyed . | . . Critical Strikes 2 | . 2 Burn 1 | . 1 Corrupt 1 | . 1 Melee Attacks . | . . Impact . | . . Slashing . | . . Piercing . | . . Sneak Attacks . | . . Combat Hostiles . | . . Follow-up Attacks . | . . Damage Inflicted 761 | . 761 Guns 684 | . 684 Cannons . | . . Explosions 52 | . 52 Melee . | . . Ramming 25 | . 25 Kinetic 368 | . 368 Thermal 260 | . 260 Explosive . | . . Electromagnetic 108 | . 108 Impact . | . . Slashing . | . . Piercing . | . . Highest Corruption . | . . Average Corruption . | . . Corruption Purged . | . . Corruption Blocked . | . . Overload Shots . | . . Overflow Damage . | . . Projectiles . | . . Explosions . | . . Melee . | . . Knockbacks 1 | . 1 Impact 1 | . 1 Kinetic . | . . Secondary . | . . Self-Inflicted Damage 34 | . 34 Shots 1 | . 1 Rammed . | . . Targets Rammed 10 | . 10 Kicked 10 | . 10 Crushed . | . . Highest Temperature 427 | . 427 Average Temperature 107 | . 107 Received Heat Transfer 480 | . 480 Effects 8 | . 8 Energy Bleed 1 | . 1 Interference 1 | . 1 Matter Decay 1 | . 1 Short Circuit 1 | . 1 Damage (major) 4 | . 4 Siege Activations . | . . Robots Corrupted . | . . Combat Hostiles . | . . Parts Fried . | . . Impact Corruptions . | . . Robots Melted . | . . Combat Hostiles . | . . Parts Melted 3 | . 3 Heat Transferred 608 | . 608 Parts Sabotaged . | . . Parts Stolen . | . . Parts Stripped . | . . Power Chain Reactions 1 | . 1 Alert | -11 -10 ------- Run | Yrd Mat Peak Influence 203 | . 203 Initial . | . . Average 78 | . 87 Maximum Alert Level 1 | . 1 Low Security (%) 99 | 100 99 Level 1 . | . . Level 2 . | . . Level 3 . | . . Level 4 . | . . Level 5 . | . . High Security . | . . Max Security . | . . Squads Dispatched 3 | . 3 Investigation . | . . Extermination . | . . Reinforcement 3 | . 3 Assault . | . . Garrison . | . . Intercept . | . . Searches Triggered . | . . Construction Impeded . | . . Haulers Reinforced . | . . Active Scanning Responses . | . . Cargo Convoy Interrupts . | . . Stealth | -11 -10 --------- Run | Yrd Mat Distress Signals . | . . Communications Jammed . | . . Distress Signals . | . . Times Spotted 19 | . 19 Peak Tracking Total 3 | . 3 Tactical Retreats . | . . Traps | -11 -10 ------- Run | Yrd Mat Traps Triggered . | . . Indirectly . | . . Trap Hack Attempts . | . . Triggered . | . . Disarmed . | . . Reprogrammed . | . . Reused . | . . Traps Extracted . | . . Installed . | . . Triggered . | . . Machines | -11 -10 ---------- Run | Yrd Mat Machines Disabled . | . . Max in Single Turn . | . . Machines Repaired . | . . Machines Dismantled . | . . Machines Sabotaged . | . . Overloaded Fab Kills . | . . Hacking | -11 -10 --------- Run | Yrd Mat Machines Accessed 1 | . 1 Terminals . | . . Fabricators . | . . Repair Stations 1 | . 1 Recycling Units . | . . Scanalyzers . | . . Garrison Access . | . . Total Hacks 1 | . 1 Successful 1 | . 1 Failed . | . . Catastrophic . | . . Database Lockouts . | . . Manual . | . . Terminals . | . . Fabricators . | . . Repair Stations 1 | . 1 Recycling Units . | . . Scanalyzers . | . . Garrison Access . | . . Terminal Hacks . | . . Fabricator Hacks . | . . Repair Station Hacks 1 | . 1 Refit 1 | . 1 Recycling Unit Hacks . | . . Scanalyzer . | . . Garrison Access Hacks . | . . Unauthorized Hacks . | . . Terminals . | . . Fabricators . | . . Repair Stations . | . . Recycling Units . | . . Scanalyzers . | . . Garrison Access . | . . Data Cores Recovered . | . . Used . | . . Hacking Detections 1 | . 1 Full Trace Events . | . . Feedback Events . | . . Feedback Blocked . | . . Robot Schematics Acquired . | . . Robots Built . | . . Authchips . | . . Time . | . . Total Robot Build Rating . | . . Part Schematics Acquired . | . . Parts Built . | . . Authchips . | . . Time . | . . Total Part Build Rating . | . . Parts Repaired . | . . Time . | . . Parts Recycled . | . . Recycled Matter . | . . Retrieved Matter . | . . Retrieved Components . | . . Parts Scanalyzed . | . . Part Schematics Acquired . | . . Parts Damaged . | . . Bothacking | -11 -10 ------------ Run | Yrd Mat Used RIF Installer . | . . Robots Hacked . | . . Non-combat . | . . Combat . | . . Robot Hacks Applied . | . . Relay Couplers Released . | . . Fabnet Peak Effective % . | . . Robots Rewired . | . . Allies Hacked . | . . Hacks Repelled . | . . Allies | -11 -10 -------- Run | Yrd Mat Total Allies . | . . Largest Group . | . . Highest-Rated Group . | . . Highest-Rated Ally . | . . Total Orders . | . . Ally Attacks . | . . Total Damage . | . . Kills . | . . Allies Corrupted . | . . Allies Melted . | . . Intel | -11 -10 ------- Run | Yrd Mat Robot Analysis Total . | . . Derelict Logs Recovered . | . . Drone Launches . | . . Drone Recoveries . | . . Exploration | -11 -10 ------------- Run | Yrd Mat Turns Passed 656 | 64 592 Spaces Moved 370 | 62 308 Core 37 | 25 12 Treads . | . . Legs 296 | . 296 Wheels 37 | 37 . Hover . | . . Flight . | . . Fastest Speed 50 | 50 120 Average Speed 124 | 81 132 Slowest Speed 190 | 150 190 Overloaded Moves . | . . Propulsion Burnouts . | . . Robots Hopped . | . . Cave-ins Triggered . | . . Exploration Rate (%) 22 | 3 42 Regions Visited 1 Branch Regions . Pre-discovered Areas . | . . Known Exits Taken . | . . Unknown Exits Taken 1 | 1 . Scrap Searched . | . . Spaces Dug . | . . Terrain Destroyed 5 | . 5 Melee . | . . Projectile . | . . AOE 5 | . 5 Terrain Rammed . | . . Walls Destroyed . | . . Machines Disabled . | . . Actions | -11 -10 --------- Run | Yrd Mat Total 469 | 73 396 Wait . | . . Move 369 | 61 308 Hop . | . . Pick Up 13 | 6 7 Fast Attach 7 | 5 2 Attach 4 | . 4 Detach . | . . Swap 6 | . 6 Drop 3 | 1 2 Fire 57 | . 57 Melee . | . . Ram . | . . Kick 10 | . 10 Crush . | . . Escape Stasis . | . . Rewire . | . . Trap . | . . Miscellaneous . | . . Route ------- -11/Scrapyard -10/Materials (discovered 1 exit: [*Mat]) History --------- Turn | Location | Event 4 | -11/Scrapyard | Discovered new exit (range 15) 65 | -11/Scrapyard | Entered Materials 315 | -10/Materials | Build established: Mutant 428 | -10/Materials | Core integrity fell below 50% 460 | -10/Materials | Core integrity fell below 20% 492 | -10/Materials | Lost 5 parts (1p2n1u1w) 626 | -10/Materials | Discovered new exit (range 15) 657 | -10/Materials | Destroyed by G-34 Mercenary with Small Laser Last Messages --------------- Heat Sink melted. G-34 Mercenary destroyed. Overheating: System interference. Particle Gun temporarily disabled. Acquired Aluminum Leg. Dropped Aluminum Leg. Dropped Assault Rifle. Acquired 60 matter. Acquired Assault Rifle. S-10 Pest destroyed. When attempting to attach a part directly from the ground, if there is no auto-replacement effect you can quickly repeat the command a second time to attempt a manual swap. Acquired 19 matter. Acquired 11 matter. EXIT=FOUND Acquired Lgt. Ion Engine. Acquired Lgt. Assault Rifle. Assault Rifle destroyed. Map ----- +----------------------------------------------------+ | | | ?????????????????????????????????????????????????? | | ?????????????????????????????????????????????????? | | ?????????????????????????????????????????????????? | | ?????????????????????????????????????????????????? | | ?????????????????????????????????????????????????? | | ?????????????????????????????????????????????????? | | ?????????????????????????????????????????????????? | | ?????????????????????????????????????????????????? | | ??????????????????????? ???????????????????????? | | ??????????????????????# < #??????????????????????? | | ??????????????????????# #??????????????????????? | | ??????????????????????+ #??????????????????????? | | ??????????????????????# #??????????????????????? | | ???????????????????#??# #??#???????????????????? | | ??????????????????? ?# #? ????????????????????? | | ???????????????????? ?# #? ????????????????????? | | ????????????????????? # # ?????????????????????? | | ????????????????????? # # ?????????????????????? | | ??????????????????????+ u +??????????????? ??? | | ??????????????????????# o#??????????????# ? | | ??????????????????????# #??????????????# | | ??????????????????????# #??????????????# "" | | ??????????????????????# #??????????????# Y" | | ????????????########### #??????????????# "" | | ????????????# # @#??????????????# | | ????????????# = +* g################ | | ????????????# =#% | | ????????????# # | | ????????????########### T | | ????????????????????########## """ | | ????????????????????# # """ | | ????????????????????# *# !=* """ | | ????????????????????# # !=* """ | | ????????????????????# """ # !** | | ????????????????????#""""" %+! | | ????????????????????#""""" #= | | ????????????????????#""""" =# ########+#### | | ????????????????????# """ # #??# | | ????????????????????# # #??# | | ????????????????????########## #??# """ """ | | ?????????????????????????????# #??# """ """ | | ?????????????????????????????# #??# """ """ | | ?????????????????????????????# #??# | | ?????????????????????????????### #??# | | ???????????????????????????????# ^ #??# | | ???????????????????????????????# #??########## | | ???????????????????????????????# #???????????? | | ???????????????????????????????# #???######### | | ???????????????????????????????# #???# # | +----------------------------------------------------+ Best States ------------- Heat Dissipation 25 Energy Generation 10 Energy Capacity 250 Matter Stores 300 Matter Capacity 300 Sight Range 16 Terrain Scan Density 10 Armor Coverage 80 Evasion (%) 55 Item Schematics ----------------- None Robot Schematics ------------------ None Fabricated ------------ Nothing Alien Tech Used ----------------- None Achievements -------------- None Challenges ------------ None Game ------ Seed PhaseWarlordBank Manual? 0 Play Time 00:10:28 Cumulative 5.7 hours Start 2024.12.02 @ 21:21:58 End 2024.12.02 @ 21:31:03 Sessions 1 Manual Loads 0 Difficulty Rogue Special Mode None Game No. 11 Rogue 4 Adventurer 0 Explorer 7 Win Type - Total 0 Types 0/0/0/0/0/0/0/0/0 Lore% 2 Gallery% 20 Achievement% 16 Wizard Run 0 Options --------- Layout 1 ASCII 0 Keyboard 0 Movement Arrows Keybinds 0 Fullscreen 1 Font 16/SmallcapsGlow Map View 55x38 Zoom Use 0% Tactical HUD 0 Map Filters NONE Filters NONE Steam 1 RUN: 2c33bf61-1747-4e2d-a647-cc18842a2eda